bitfinex-derivatives/quotes_SOLF0:USTF0_20241229
["timestamp","ask_amount","ask_price","bid_price","bid_amount"]
[1735489219010,12.7634484,194.16,194.08,6.4744]
[1735489219610,2.5798,194.13,194.08,9.0547]
[1735489219812,12.7634484,194.16,194.08,6.4744]
[1735489220116,12.7634484,194.2,194.08,6.4744]
[1735489221211,2.5793,194.17,194.11,2.5799]
[1735489222216,2.5793,194.17,194.08,6.4744]
[1735489222415,12.7634484,194.2,194.01,5.0]
[1735489222616,12.7634484,194.17,194.03,12.7634484]
[1735489223418,2.5797,194.14,194.07,2.5806]
[1735489223617,2.5797,194.14,194.02,7.8677]
[1735489223618,12.7634484,194.14,194.02,4.4877]
[1735489223819,12.7634484,194.11,194.02,4.4877]
[1735489224117,2.5806,194.08,194.03,2.581]
[1735489224714,1.5589,194.16,194.02,4.4877]
[1735489224913,12.7634484,194.18,194.04,12.7634484]
[1735489225122,12.7634484,194.18,194.07,12.7634484]
[1735489225316,12.7634484,194.21,194.08,3.38]
[1735489226017,2.579,194.19,194.08,3.38]
[1735489227210,2.5792,194.18,194.13,2.5797]
[1735489229917,2.579,194.19,194.12,2.5799]
[1735489230117,2.579,194.19,194.08,3.38]
[1735489230316,21.9756818,194.23,194.08,3.38]
[1735489230820,2.5792,194.18,194.13,2.5797]
[1735489231021,21.9756818,194.23,194.08,3.38]
[1735489231525,2.579,194.19,194.13,2.5797]
[1735489232621,2.5792,194.18,194.13,2.5797]
[1735489232924,21.9756818,194.23,194.12,2.5799]
[1735489233122,21.9756818,194.23,194.1,3.38]
[1735489233323,20.4167818,194.2,194.1,3.38]
[1735489233522,2.5797,194.14,194.1,2.5801]
[1735489233721,20.4167818,194.2,194.1,2.5801]
[1735489233923,20.4167818,194.2,194.04,20.4167818]
[1735489234123,2.579,194.19,194.05,3.38]
[1735489234528,21.9756818,194.23,194.05,3.38]
[1735489234827,21.9756818,194.23,194.13,2.5797]
[1735489235221,2.5791,194.19,194.14,2.5796]
[1735489235724,2.5794,194.16,194.11,5.9599]
[1735489236024,20.4167818,194.2,194.11,3.38]
[1735489236528,21.9756818,194.23,194.11,3.38]
[1735489236824,2.5791,194.19,194.14,2.5796]
[1735489237024,21.9756818,194.23,194.14,2.5796]
[1735489237224,21.9756818,194.23,194.11,3.38]
[1735489237526,2.5793,194.17,194.13,2.5798]
[1735489238129,2.5791,194.18,194.14,2.5796]
[1735489240027,20.4167818,194.26,194.11,3.38]
[1735489240217,21.9647818,194.29,194.13,20.4167818]
[1735489240418,2.5777,194.29,194.13,20.4167818]
[1735489240617,56.88575282,194.3,194.16,20.4167818]
[1735489240823,67.06435271,194.32,194.17,3.38]
[1735489241128,2.5777,194.29,194.17,3.38]
[1735489241519,2.5774,194.32,194.19,20.4167818]
[1735489241723,2.5774,194.32,194.2,4.5949]
[1735489242842,1.548,194.37,194.22,20.4167818]
[1735489243023,2.577,194.35,194.23,3.38]
[1735489243226,20.4167818,194.4,194.23,3.38]
[1735489243628,2.5767,194.37,194.23,3.38]
[1735489244135,2.5767,194.37,194.25,20.4167818]
[1735489244436,2.5767,194.37,194.31,2.5774]
[1735489244627,2.5767,194.37,194.32,3.38]
[1735489245326,2.5765,194.39,194.32,5.9572]
[1735489245526,65.0585006,194.43,194.32,3.38]
[1735489245831,2.5763,194.4,194.33,2.5771]
[1735489246027,63.5356006,194.43,194.33,2.5771]
[1735489246233,63.5356006,194.43,194.32,3.38]
[1735489246630,20.4167818,194.46,194.32,3.38]
[1735489247027,2.5757,194.44,194.38,2.5764]
[1735489247227,20.4167818,194.46,194.39,3.32]
[1735489247527,20.4167818,194.46,194.31,20.4167818]
[1735489247528,20.4167818,194.46,194.38,3.32]
[1735489248032,2.5759,194.43,194.38,5.8965]
[1735489248227,1.5702,194.48,194.38,3.32]
[1735489248433,20.4167818,194.49,194.38,3.32]
[1735489248629,2.5753,194.48,194.41,2.576]
[1735489248829,2.13807049,194.5,194.39,3.0921]
[1735489250326,14.86166031,194.5,194.39,3.0921]
[1735489250527,2.5752,194.48,194.42,2.5759]
[1735489251727,12.72358982,194.5,194.39,3.0921]
[1735489251936,2.575,194.5,194.4,12.72358982]
[1735489252229,12.72358982,194.53,194.43,12.72358982]
[1735489252428,2.5744,194.54,194.44,3.32]
[1735489252628,12.72358982,194.56,194.44,3.32]
[1735489253231,12.72358982,194.56,194.46,2.5753]
[1735489253431,12.72358982,194.56,194.44,3.32]
[1735489253631,12.72358982,194.59,194.46,12.72358982]
[1735489253833,2.574,194.57,194.47,1.5208]
[1735489254233,2.574,194.57,194.48,3.022]
[1735489255133,20.33776959,194.61,194.52,2.5746]
[1735489255330,2.5738,194.59,194.53,3.32]
[1735489255535,2.5738,194.59,194.54,3.32]
[1735489255732,1.4619,194.65,194.48,3.022]
[1735489255733,20.33776959,194.61,194.48,3.022]
[1735489255937,20.33776959,194.58,194.49,3.32]
[1735489256133,20.33776959,194.55,194.43,3.32]
[1735489256535,1.4674,194.54,194.43,3.32]
[1735489256942,2.575,194.5,194.43,3.32]
[1735489257141,20.33776959,194.52,194.43,3.32]
[1735489257641,2.5753,194.47,194.43,3.32]
[1735489260345,20.33776959,194.52,194.43,3.32]
[1735489260541,2.5753,194.47,194.43,3.32]
[1735489260846,1.4674,194.54,194.43,3.32]
[1735489261036,20.33776959,194.55,194.43,3.32]
[1735489261241,20.33776959,194.58,194.44,3.1153]
[1735489263250,20.33776959,194.52,194.37,20.33776959]
[1735489263441,2.5752,194.48,194.39,2.5763]
[1735489263643,20.33776959,194.52,194.38,3.32]
[1735489264248,20.33776959,194.52,194.36,3.32]
[1735489264249,20.33776959,194.46,194.36,3.32]
[1735489264650,1.5117,194.51,194.36,3.32]
[1735489264851,20.33776959,194.46,194.36,3.32]
[1735489265046,20.33776959,194.49,194.36,3.32]
[1735489265649,2.5759,194.43,194.38,2.5765]
[1735489265848,20.33776959,194.49,194.36,3.32]
[1735489266552,1.5117,194.51,194.36,3.32]
[1735489267355,1.5117,194.51,194.4,2.5761]
[1735489267955,2.5755,194.46,194.41,2.576]
[1735489268154,2.5755,194.46,194.42,3.32]
[1735489268553,1.5117,194.51,194.42,5.8958]
[1735489268554,2.5753,194.48,194.42,5.8958]
[1735489268863,2.5753,194.48,194.42,3.32]
[1735489269556,44.41829822,194.54,194.42,3.32]
[1735489269761,44.41829822,194.54,194.43,3.0051]
[1735489270562,44.41829822,194.54,194.43,5.5809]
[1735489270763,20.33776959,194.52,194.43,3.0051]
[1735489271956,20.33776959,194.52,194.43,1.4879]
[1735489272351,20.33776959,194.52,194.4,3.32]
[1735489272554,20.33776959,194.46,194.36,6.3045]
[1735489273558,2.5764,194.39,194.36,6.3045]
[1735489273860,20.33776959,194.46,194.36,6.3045]
[1735489274067,2.577,194.35,194.31,3.32]
[1735489274253,21.81826959,194.5,194.31,3.32]
[1735489274254,20.33776959,194.4,194.31,3.32]
[1735489275561,2.5769,194.35,194.31,3.32]
[1735489276559,20.33776959,194.43,194.32,2.5772]
[1735489276757,20.33776959,194.43,194.31,3.32]
[1735489277663,20.33776959,194.43,194.31,5.8973]
[1735489278272,12.73800464,194.39,194.31,5.8973]
[1735489278566,12.73800464,194.39,194.33,2.577]
[1735489278768,12.73800464,194.42,194.33,2.577]
[1735489279569,2.5766,194.38,194.33,2.577]
[1735489279769,12.73800464,194.42,194.33,2.577]
[1735489280163,12.73800464,194.42,194.31,3.32]
[1735489280365,2.5768,194.36,194.31,5.8973]
[1735489282269,2.5769,194.35,194.31,5.8973]
[1735489282768,2.5769,194.35,194.31,3.32]
[1735489283673,12.73800464,194.39,194.29,53.6]
[1735489283870,12.73800464,194.39,194.3,3.28]
[1735489284277,12.73800464,194.36,194.29,3.28]
[1735489284467,2.5774,194.32,194.29,3.28]
[1735489286675,12.73800464,194.36,194.21,12.73800464]
[1735489286875,12.73800464,194.3,194.19,1.5748]
[1735489287080,12.73800464,194.3,194.19,3.1641]
[1735489288475,12.73800464,194.3,194.19,15.90210464]
[1735489289680,12.73800464,194.3,194.2,3.28]
[1735489290083,2.5781,194.26,194.2,3.28]
[1735489290282,12.73800464,194.3,194.2,3.28]
[1735489290983,2.5777,194.29,194.24,2.5782]
[1735489291278,12.73800464,194.33,194.22,12.73800464]
[1735489291783,12.73800464,194.36,194.25,12.73800464]
[1735489291979,12.73800464,194.36,194.26,3.28]
[1735489292181,2.577,194.35,194.3,2.5774]
[1735489292481,12.73800464,194.36,194.26,3.28]
[1735489292677,12.73800464,194.33,194.26,3.28]
[1735489292882,2.5774,194.31,194.26,3.28]
[1735489293078,12.73800464,194.36,194.26,3.28]
[1735489293276,2.5771,194.34,194.29,2.5776]
[1735489293578,12.73800464,194.36,194.29,2.5776]
[1735489293878,2.5773,194.32,194.27,2.5778]
[1735489294077,12.73800464,194.36,194.26,3.28]
[1735489294784,2.5772,194.33,194.29,2.5776]
[1735489295080,14.32730464,194.39,194.26,16.01800464]
[1735489295882,2.5768,194.36,194.26,16.01800464]
[1735489297087,2.5768,194.36,194.31,2.5773]
[1735489297483,2.5766,194.38,194.32,3.28]
[1735489298589,2.5766,194.38,194.34,2.577]
[1735489298979,12.73800464,194.42,194.32,3.28]
[1735489299287,12.73800464,194.36,194.3,2.9916]
[1735489300089,2.5771,194.34,194.3,2.9916]
[1735489300489,12.73800464,194.36,194.3,2.9916]
[1735489301189,12.73800464,194.36,194.24,1.5364]
[1735489301384,12.73800464,194.36,194.24,3.1203]
[1735489301585,12.73800464,194.36,194.25,3.28]
[1735489301785,2.5778,194.28,194.25,3.28]
[1735489303787,2.5776,194.3,194.25,3.28]
[1735489303990,12.73800464,194.33,194.24,1.5839]
[1735489304385,2.5777,194.29,194.24,4.1621]
[1735489304781,12.73800464,194.33,194.24,1.5839]
[1735489305090,2.5777,194.29,194.22,3.28]
[1735489305389,12.73800464,194.33,194.22,3.28]
[1735489306085,2.5779,194.28,194.24,2.5782]
[1735489307691,2.5779,194.27,194.23,2.5784]
[1735489308691,2.5782,194.26,194.21,2.5786]
[1735489308882,2.5782,194.26,194.2,4.7381]
[1735489309085,12.73800464,194.3,194.2,4.7381]
[1735489309283,12.73800464,194.3,194.23,2.5785]
[1735489309894,2.5779,194.28,194.23,2.5785]
[1735489310288,12.73800464,194.3,194.23,2.5785]
[1735489310496,12.73800464,194.27,194.2,1.4581]
[1735489310695,12.73800464,194.27,194.18,1.5411]
[1735489310993,3.28,194.33,194.19,2.5789]
[1735489311193,12.73800464,194.28,194.18,1.5411]
[1735489311393,2.5782,194.25,194.18,1.5411]
[1735489311591,12.73800464,194.28,194.18,1.5411]
[1735489311984,2.5778,194.28,194.18,1.5411]
[1735489312192,3.28,194.33,194.22,2.5785]
[1735489312193,12.73800464,194.31,194.22,2.5785]
[1735489312790,2.5781,194.27,194.23,2.5784]
[1735489313294,12.73800464,194.28,194.21,3.28]
[1735489313987,2.5786,194.23,194.21,3.28]
[1735489314192,12.73800464,194.28,194.21,3.28]
[1735489315186,12.73800464,194.28,194.18,4.8211]
[1735489315385,2.5784,194.24,194.2,2.5789]
[1735489315987,12.73800464,194.28,194.18,4.8211]
[1735489316596,2.578,194.27,194.18,4.8211]
[1735489316797,12.73800464,194.28,194.18,4.8211]
[1735489317196,2.5781,194.26,194.21,2.5787]
[1735489317795,2.5779,194.27,194.18,4.8211]
[1735489319102,2.5779,194.27,194.22,2.5785]
[1735489319401,12.73800464,194.28,194.18,4.8211]
[1735489319600,12.73800464,194.28,194.2,2.5788]
[1735489319903,12.73800464,194.28,194.18,4.8211]
[1735489320302,12.73800464,194.25,194.18,1.5411]
[1735489320504,12.73800464,194.28,194.18,1.5411]
[1735489322217,12.73800464,194.28,194.15,4.7943]
[1735489322404,12.73800464,194.25,194.15,4.7943]
[1735489322605,2.5788,194.21,194.17,2.5792]
[1735489324005,12.73800464,194.25,194.15,4.7943]
[1735489324209,2.5791,194.19,194.15,7.3738]
[1735489324404,12.73800464,194.22,194.15,1.5143]
[1735489325413,12.73800464,194.22,194.12,1.514]
[1735489325717,12.73800464,194.19,194.12,1.514]
[1735489326011,12.73800464,194.21,194.14,2.5795]
[1735489326211,12.73800464,194.21,194.12,1.514]
[1735489326405,12.73800464,194.18,194.08,1.544]
[1735489326603,12.73800464,194.21,194.08,14.28200464]
[1735489326805,2.5793,194.17,194.13,2.5797]
[1735489327302,12.73800464,194.21,194.08,14.28200464]
[1735489327506,2.5792,194.18,194.14,2.5796]
[1735489328313,12.73800464,194.18,194.09,3.28]
[1735489328813,12.73800464,194.18,194.08,1.544]
[1735489329208,12.73800464,194.15,194.08,1.544]
[1735489329406,12.73800464,194.15,194.02,1.4658]
[1735489329711,12.73800464,194.12,194.02,7.8074]
[1735489330210,2.5804,194.09,194.04,2.581]
[1735489330605,12.73800464,194.12,194.02,3.0616]
[1735489330810,12.73800464,194.12,194.03,3.28]
[1735489331009,12.73800464,194.12,193.92,28.62603597]
[1735489331307,2.5811,194.04,193.98,3.28]
[1735489332118,2.5811,194.04,193.99,2.5815]
[1735489332810,2.5811,194.04,193.94,12.73800464]
[1735489332811,2.5811,194.03,193.97,5.8618]
[1735489333216,12.73800464,194.03,193.93,4.5274]
[1735489333419,2.5813,194.02,193.95,2.5822]
[1735489333625,2.5813,194.02,194.01,3.3761]
[1735489341420,2.5811,194.03,194.01,3.3761]
[1735489341624,12.73800464,194.09,194.01,3.3761]
[1735489342321,2.5809,194.05,194.01,3.3761]
[1735489342821,2.5807,194.06,194.01,5.9575]
[1735489343025,12.73800464,194.12,194.01,3.3761]
[1735489343724,2.5804,194.09,194.01,3.3761]
[1735489343920,5.31804404,194.13,194.01,16.11410464]
[1735489343921,1.93804404,194.13,194.01,16.11410464]
[1735489344222,1.93804404,194.13,194.02,3.0352]
[1735489344628,2.5806,194.08,194.03,2.5811]
[1735489345017,1.93804404,194.13,194.03,2.5811]
[1735489345217,2.5805,194.08,194.04,3.38]
[1735489345824,2.5806,194.07,194.04,3.38]
[1735489346227,2.5806,194.07,194.03,5.9611]
[1735489346827,2.5805,194.08,194.03,5.9611]
[1735489347025,1.93804404,194.13,194.03,3.38]
[1735489347321,12.73800464,194.19,194.04,12.73800464]
[1735489347520,12.73800464,194.19,194.05,1.5616]
[1735489348129,2.5802,194.11,194.06,2.5807]
[1735489348925,2.5802,194.1,194.06,2.5807]
[1735489349119,12.73800464,194.16,194.07,3.38]
[1735489349726,2.5804,194.09,194.05,1.5616]
[1735489349920,12.73800464,194.13,194.06,3.38]
[1735489350322,2.5806,194.07,193.94,31.24386051]
[1735489350527,12.73800464,194.13,194.02,3.38]
[1735489350928,2.5808,194.06,194.02,3.38]
[1735489351723,12.73800464,194.1,193.97,12.73800464]
[1735489351924,12.73800464,194.1,194.01,6.7561]
[1735489352322,2.5813,194.03,194.01,6.7561]
[1735489354326,12.73800464,194.1,194.01,6.7561]
[1735489355222,2.581,194.04,194.01,6.7561]
[1735489355628,12.73800464,194.1,194.01,6.7561]
[1735489355827,2.5809,194.05,194.01,9.3374]
[1735489356229,2.5809,194.05,194.01,6.7561]
[1735489357327,2.5807,194.07,194.02,2.5812]
[1735489357929,12.73800464,194.13,194.01,9.3375]
[1735489358128,4.9738,194.19,194.01,19.49410464]
[1735489358325,12.73800464,194.16,194.01,19.49410464]
[1735489358732,2.58,194.12,194.05,2.5808]
[1735489358925,12.73800464,194.16,194.05,2.5808]
[1735489359125,12.73800464,194.16,194.01,19.49410464]
[1735489359828,2.5802,194.11,194.04,12.73800464]
[1735489360028,2.5802,194.11,194.05,4.6173]
[1735489360332,2.5799,194.12,194.08,2.5804]
[1735489360527,2.5799,194.12,194.08,5.9604]
[1735489360931,2.5798,194.14,194.09,2.5803]
[1735489361134,2.5798,194.14,194.08,3.38]
[1735489361527,12.73800464,194.22,194.12,2.5799]
[1735489362524,2.5793,194.17,194.12,2.5799]
[1735489362730,12.73800464,194.22,194.08,16.11800464]
[1735489362927,12.73800464,194.25,194.11,12.73800464]
[1735489363235,12.73800464,194.25,194.17,2.5793]
[1735489363636,2.5786,194.22,194.17,2.5793]
[1735489363836,2.5786,194.22,194.17,4.1483]
[1735489365545,2.5785,194.24,194.18,2.5791]
[1735489365738,2.5785,194.24,194.17,1.569]
[1735489366334,2.5782,194.25,194.2,2.5789]
[1735489366834,41.96522852,194.27,194.2,2.5789]
[1735489367337,12.73800464,194.33,194.22,2.5785]
[1735489367535,12.73800464,194.33,194.23,3.36]
[1735489367840,2.5775,194.3,194.24,2.5783]
[1735489368243,2.5775,194.3,194.25,1.4957]
[1735489368632,12.73800464,194.33,194.25,1.4957]
[1735489368838,2.5777,194.29,194.25,1.4957]
[1735489369336,2.578,194.27,194.25,1.4957]
[1735489369540,12.73800464,194.33,194.23,3.36]
[1735489370437,2.578,194.27,194.23,3.36]
[1735489371434,2.5782,194.25,194.2,2.5788]
[1735489371633,2.5782,194.25,194.05,41.36404061]
[1735489371634,12.73800464,194.21,194.05,41.36404061]
[1735489371836,12.73800464,194.18,194.06,4.6341]
[1735489372039,2.5805,194.08,194.06,4.6341]
[1735489372242,12.73800464,194.15,194.06,4.6341]
[1735489372936,2.5803,194.1,194.06,4.6341]
[1735489374735,12.73800464,194.18,194.08,2.5804]
[1735489375944,2.5797,194.15,194.08,2.5804]
[1735489376143,12.73800464,194.18,194.08,2.5804]
[1735489376944,2.5795,194.15,194.08,2.5804]
[1735489377148,12.73800464,194.18,194.09,2.5803]
[1735489377344,3.36,194.2,194.09,3.36]
[1735489377345,2.5794,194.17,194.09,3.36]
[1735489377552,2.5794,194.17,194.09,16.09800464]
[1735489378249,2.5794,194.17,194.12,2.5799]
[1735489378551,2.5794,194.17,194.09,16.09800464]
[1735489378851,2.5791,194.18,194.13,2.5798]
[1735489379045,12.73800464,194.21,194.09,16.09800464]
[1735489380349,2.579,194.19,194.09,16.09800464]
[1735489381651,2.579,194.19,194.15,2.5795]
[1735489384153,12.73800464,194.24,194.09,16.09800464]
[1735489384347,12.73800464,194.18,194.06,17.37210464]
[1735489384547,12.73800464,194.18,194.1,3.36]
[1735489384748,2.5796,194.15,194.1,2.5802]
[1735489385341,2.5796,194.15,194.06,17.37210464]
[1735489385553,2.5799,194.12,194.06,17.37210464]
[1735489385756,12.73800464,194.18,194.06,4.6341]
[1735489385955,12.73800464,194.18,194.06,7.9941]
[1735489386254,2.5804,194.09,194.06,4.6341]
[1735489387454,12.73800464,194.15,194.03,2.5811]
[1735489387455,2.5806,194.08,194.03,2.5811]
[1735489387651,12.73800464,194.12,194.01,6.7361]
[1735489388054,2.5808,194.06,194.01,9.3175]
[1735489388355,2.5808,194.06,194.01,6.7361]
[1735489388955,2.5806,194.07,194.02,2.5813]
[1735489389648,56.88575282,194.21,194.01,3.3761]
[1735489389854,16.09800464,194.2,194.06,12.73800464]
[1735489390153,16.09800464,194.2,194.07,1.4601]
[1735489390945,12.73800464,194.2,194.07,1.4601]
[1735489391150,12.73800464,194.2,194.08,1.5609]
[1735489391350,2.5794,194.16,194.11,2.58]
[1735489391956,2.5798,194.13,194.09,2.5803]
[1735489393558,2.5797,194.14,194.08,3.0855]
[1735489393955,2.5798,194.13,194.08,5.6658]
[1735489394153,2.5798,194.13,194.08,3.0855]
[1735489395451,2.5798,194.13,194.09,2.5803]
[1735489396056,20.42459483,194.21,194.11,2.58]
[1735489396555,2.5794,194.17,194.08,3.0855]
[1735489396754,20.42459483,194.21,194.08,3.0855]
[1735489396956,2.5791,194.19,194.09,20.42459483]
[1735489398260,23.72459483,194.25,194.09,20.42459483]
[1735489398453,20.42459483,194.21,194.08,3.0855]
[1735489399658,2.5793,194.17,194.13,2.5797]
[1735489400160,20.42459483,194.21,194.12,3.3]
[1735489400962,2.579,194.19,194.12,3.3]
[1735489401859,23.72459483,194.25,194.12,3.3]
[1735489401860,2.5792,194.18,194.12,3.3]
[1735489402163,23.72459483,194.25,194.13,2.5798]
[1735489402866,2.5792,194.18,194.13,2.5798]
[1735489403067,23.72459483,194.25,194.13,2.5798]
[1735489403455,2.5792,194.18,194.13,2.5798]
[1735489404461,2.5794,194.17,194.13,2.5798]
[1735489404661,23.72459483,194.25,194.11,5.8799]
[1735489404861,23.72459483,194.25,194.11,3.3]
[1735489405060,23.72459483,194.25,194.08,1.5609]
[1735489405061,20.42459483,194.21,194.08,1.5609]
[1735489405664,2.5796,194.15,194.08,1.5609]
[1735489406267,2.5796,194.15,194.1,2.5801]
[1735489406464,20.42459483,194.21,194.08,1.5609]
[1735489406967,20.42459483,194.21,194.09,2.5803]
[1735489407168,2.5798,194.14,194.09,2.5803]
[1735489407363,20.42459483,194.21,194.09,2.5803]
[1735489407567,20.42459483,194.17,194.02,1.4806]
[1735489407771,3.3,194.16,194.02,4.7806]
[1735489407967,20.42459483,194.14,194.02,1.4806]
[1735489408163,20.42459483,194.14,194.01,4.8279]
[1735489408367,20.42459483,194.11,194.01,4.8279]
[1735489408875,20.42459483,194.11,194.02,2.5812]
[1735489409264,2.5807,194.07,194.02,2.5812]
[1735489409469,20.42459483,194.11,194.01,4.8279]
[1735489409772,3.3,194.16,194.05,2.5808]
[1735489409773,77.31034765,194.15,194.05,2.5808]
[1735489410068,56.88575282,194.15,194.05,3.3]
[1735489410570,20.42459483,194.15,194.05,3.3]
[1735489411174,20.42459483,194.15,194.05,5.8808]
[1735489412374,3.3,194.16,194.05,5.8808]
[1735489412375,12.7725551,194.14,194.05,5.8808]
[1735489413172,2.58,194.12,194.05,5.8808]
[1735489413376,12.7725551,194.14,194.05,5.8808]
[1735489413573,12.7725551,194.14,194.07,2.5806]
[1735489413774,2.5799,194.12,194.07,2.5806]
[1735489414182,2.5801,194.11,194.07,2.5806]
[1735489414581,3.3,194.16,194.08,2.5805]
[1735489414977,10.31123633,194.2,194.06,12.7725551]
[1735489414978,12.7725551,194.2,194.06,12.7725551]
[1735489415283,16.64472946,194.2,194.06,12.7725551]
[1735489415473,2.5795,194.16,194.07,3.1102]
[1735489415675,2.5795,194.16,194.09,12.7725551]
[1735489415882,2.5795,194.16,194.11,2.5799]
[1735489416182,2.5795,194.16,194.11,5.8799]
[1735489416871,12.7725551,194.2,194.11,3.3]
[1735489417072,2.5796,194.15,194.11,3.3]
[1735489420178,12.7725551,194.17,194.07,1.5448]
[1735489420482,12.7725551,194.14,194.05,3.3]
[1735489420672,2.5807,194.06,194.05,3.3]
[1735489421086,2.5806,194.07,194.05,3.3]
[1735489424087,12.7725551,194.14,194.05,3.3]
[1735489425384,2.5804,194.09,194.05,5.8808]
[1735489426288,2.5804,194.09,194.05,3.3]
[1735489426483,12.7725551,194.14,194.05,3.3]
[1735489426883,2.5806,194.07,194.05,3.3]
[1735489428086,2.58,194.12,194.05,3.3]
[1735489428385,12.7725551,194.14,194.05,3.3]
[1735489428692,2.5803,194.1,194.06,2.5807]
[1735489428984,26.99548566,194.17,194.05,3.3]
[1735489429190,12.7725551,194.17,194.05,3.3]
[1735489430584,2.5797,194.14,194.06,2.5807]
[1735489430789,12.7725551,194.17,194.06,2.5807]
[1735489431186,12.7725551,194.14,194.05,3.3]
[1735489431890,2.5807,194.06,194.03,3.28]
[1735489432090,12.7725551,194.14,194.03,3.28]
[1735489432588,2.5802,194.11,194.01,6.2795]
[1735489432783,12.7725551,194.14,194.02,3.28]
[1735489433593,16.6448372,194.14,194.01,8.8609]
[1735489433893,2.5808,194.06,194.02,3.28]
[1735489435490,2.5808,194.06,194.02,5.8611]
[1735489435696,2.5808,194.06,194.02,3.28]
[1735489436491,2.5808,194.06,194.03,2.5811]
[1735489438889,2.5809,194.05,194.02,3.28]
[1735489439582,2.5809,194.05,194.01,9.5595]
[1735489439786,2.5813,194.02,194.01,4.8279]
[1735489442195,2.5813,194.02,194.01,3.3761]
[1735489442897,2.5811,194.04,194.01,3.3761]
[1735489443903,2.5807,194.06,194.01,3.3761]
[1735489444092,12.7725551,194.08,194.01,3.3761]
[1735489445598,2.5813,194.02,194.01,3.3761]
[1735489450491,12.7725551,194.08,194.01,3.3761]
[1735489451500,2.5811,194.03,194.01,3.3761]
[1735489453203,12.7725551,194.08,194.01,3.3761]
[1735489453408,2.5812,194.03,194.01,3.3761]
[1735489456904,2.5813,194.02,194.01,3.3761]
[1735489458303,10.76314506,194.02,194.01,3.3761]
[1735489460406,2.5813,194.02,194.01,3.3761]
[1735489462001,2.5812,194.03,194.01,3.3761]
[1735489462210,8.18184506,194.08,194.02,3.22]
[1735489463002,2.5808,194.06,194.02,11.40184506]
[1735489463305,8.18184506,194.12,194.02,3.22]
[1735489463507,2.5802,194.1,194.04,8.18184506]
[1735489463701,8.18184506,194.12,194.04,8.18184506]
[1735489464309,12.77260354,194.14,194.03,1.4586]
[1735489464505,12.77260354,194.14,194.04,2.5809]
[1735489465602,47.757946,194.15,194.05,2.5809]
[1735489466113,2.5803,194.1,194.05,2.5809]
[1735489467307,47.757946,194.15,194.03,3.0635]
[1735489467503,12.77260354,194.1,194.03,1.4586]
[1735489467910,3.22,194.14,194.03,1.4586]
[1735489468111,12.77260354,194.11,194.03,1.4586]
[1735489468707,2.5808,194.06,194.03,1.4586]
[1735489468914,15.99260354,194.14,194.03,1.4586]
[1735489469112,12.77260354,194.14,194.03,1.4586]
[1735489469614,2.5804,194.09,194.04,2.5809]
[1735489469816,47.757946,194.15,194.03,1.4586]
[1735489470011,56.88575282,194.16,194.03,1.4586]
[1735489470012,56.88575282,194.16,194.06,12.77260354]
[1735489470216,56.88575282,194.16,194.07,3.22]
[1735489470612,12.77260354,194.17,194.07,3.22]
[1735489471111,72.02994266,194.2,194.07,3.22]
[1735489471312,72.02994266,194.2,194.07,4.6852]
[1735489471516,2.5797,194.15,194.09,2.5802]
[1735489471716,72.02994266,194.2,194.09,2.5802]
[1735489471717,15.14418984,194.2,194.09,2.5802]
[1735489472116,15.14418984,194.2,194.07,4.6852]
[1735489472315,12.77260354,194.17,194.07,4.6852]
[1735489473010,2.5797,194.14,194.07,7.2658]
[1735489473212,56.88575282,194.23,194.09,12.77260354]
[1735489473413,69.65835636,194.23,194.09,12.77260354]
[1735489473613,69.65835636,194.23,194.11,2.5801]
[1735489474514,12.77260354,194.23,194.11,2.5801]
[1735489475019,16.64437833,194.23,194.11,2.5801]